fUSD/lending_fUSD_20260628
["ID","MTS","AMOUNT","RATE_DAILY","PERIOD"]
[426573061,1782612133000,151.0,0.00037291,120]
[426573065,1782612134000,151.0,0.00037291,120]
[426573064,1782612134000,151.0,0.00037291,120]
[426573067,1782612135000,247.227713,0.00037291,120]
[426573066,1782612135000,151.0,0.00037291,120]
[426573068,1782612136000,884.300297,0.00037291,120]
[426573070,1782612137000,884.300297,0.00037291,120]
[426573069,1782612137000,884.300297,0.00037291,120]
[426573072,1782612138000,884.300297,0.00037291,120]
[426573071,1782612138000,884.300297,0.00037291,120]
[426573077,1782612139000,160.228075,0.00037291,120]
[426573076,1782612139000,884.300297,0.00037291,120]
[426573074,1782612139000,160.228075,0.00037291,120]
[426573075,1782612139000,884.300297,0.00037291,120]
[426573073,1782612139000,884.300297,0.00037291,120]
[426573078,1782612140000,884.300297,0.00037291,120]
[426573079,1782612140000,160.228075,0.00037291,120]
[426573081,1782612140000,160.228075,0.00037291,120]
[426573080,1782612140000,884.300297,0.00037291,120]
[426573085,1782612141000,160.228075,0.00037291,120]
[426573084,1782612141000,884.300297,0.00037291,120]
[426573083,1782612141000,160.228075,0.00037291,120]
[426573082,1782612141000,884.300297,0.00037291,120]
[426573088,1782612142000,884.300297,0.00037291,120]
[426573087,1782612142000,160.228075,0.00037291,120]
[426573086,1782612142000,884.300297,0.00037291,120]
[426573090,1782612143000,884.300297,0.00037291,120]
[426573089,1782612143000,160.228075,0.00037291,120]
[426573092,1782612143000,884.300297,0.00037291,120]
[426573091,1782612143000,160.228075,0.00037291,120]
[426573096,1782612144000,884.300297,0.00037291,120]
[426573095,1782612144000,160.228075,0.00037291,120]
[426573094,1782612144000,884.300297,0.00037291,120]
[426573093,1782612144000,160.228075,0.00037291,120]
[426573100,1782612145000,160.228075,0.00037291,120]
[426573099,1782612145000,884.300297,0.00037291,120]
[426573098,1782612145000,160.228075,0.00037291,120]
[426573097,1782612145000,160.228075,0.00037291,120]
[426573101,1782612146000,884.300299,0.00037291,120]
[426573103,1782612146000,160.228075,0.00037291,120]
[426573102,1782612146000,160.228075,0.00037291,120]
[426573105,1782612147000,160.228075,0.00037291,120]
[426573104,1782612147000,160.228075,0.00037291,120]
[426573107,1782612148000,160.228084,0.00037291,120]
[426573106,1782612148000,160.228075,0.00037291,120]
[426573109,1782612149000,151.0,0.00037291,120]
[426573108,1782612149000,310.954263,0.00037291,120]
[426573110,1782612150000,310.954263,0.00037291,120]
[426573111,1782612150000,151.0,0.00037291,120]
[426573112,1782612150000,151.0,0.00037291,120]
[426573114,1782612150000,310.954263,0.00037291,120]
[426573113,1782612150000,151.0,0.00037291,120]
[426573116,1782612150000,151.0,0.00037291,120]
[426573117,1782612150000,310.954263,0.00037291,120]
[426573118,1782612150000,151.0,0.00037291,120]
[426573119,1782612150000,151.0,0.00037291,120]
[426573115,1782612150000,151.0,0.00037291,120]
[426573120,1782612151000,151.000001,0.00037291,120]
[426573121,1782612151000,151.0,0.00037291,120]
[426573123,1782612151000,151.0,0.00037291,120]
[426573122,1782612151000,310.954263,0.00037291,120]
[426573125,1782612151000,151.0,0.00037291,120]
[426573127,1782612151000,151.0,0.00037291,120]
[426573126,1782612151000,310.954263,0.00037291,120]
[426573124,1782612151000,178.356822,0.00037291,120]
[426573133,1782612152000,151.0,0.00037291,120]
[426573132,1782612152000,310.954263,0.00037291,120]
[426573131,1782612152000,151.0,0.00037291,120]
[426573130,1782612152000,151.0,0.00037291,120]
[426573129,1782612152000,310.954263,0.00037291,120]
[426573128,1782612152000,151.0,0.00037291,120]
[426573134,1782612153000,310.954263,0.00037291,120]
[426573136,1782612153000,151.0,0.00037291,120]
[426573135,1782612153000,151.0,0.00037291,120]
[426573138,1782612153000,265.654182,0.00037291,120]
[426573139,1782612153000,151.0,0.00037291,120]
[426573137,1782612153000,310.954263,0.00037291,120]
[426573144,1782612154000,564.394195,0.00037291,120]
[426573143,1782612154000,310.954263,0.00037291,120]
[426573141,1782612154000,564.394195,0.00037291,120]
[426573142,1782612154000,161.853301,0.00037291,120]
[426573140,1782612154000,310.954263,0.00037291,120]
[426573146,1782612155000,564.394195,0.00037291,120]
[426573147,1782612155000,310.954263,0.00037291,120]
[426573145,1782612155000,310.954263,0.00037291,120]
[426573149,1782612155000,310.954263,0.00037291,120]
[426573150,1782612155000,564.394195,0.00037291,120]
[426573148,1782612155000,564.394195,0.00037291,120]
[426573155,1782612156000,310.954263,0.00037291,120]
[426573154,1782612156000,564.394195,0.00037291,120]
[426573153,1782612156000,310.954263,0.00037291,120]
[426573152,1782612156000,564.394195,0.00037291,120]
[426573151,1782612156000,310.954263,0.00037291,120]
[426573160,1782612157000,310.954259,0.00037291,120]
[426573159,1782612157000,564.394195,0.00037291,120]
[426573158,1782612157000,214.861598,0.00037291,120]
[426573157,1782612157000,310.954263,0.00037291,120]
[426573156,1782612157000,564.394195,0.00037291,120]
[426573161,1782612158000,564.394195,0.00037291,120]
[426573163,1782612158000,564.394195,0.00037291,120]
[426573162,1782612158000,564.394195,0.00037291,120]
[426573164,1782612159000,564.394195,0.00037291,120]
[426573166,1782612159000,295.32227878,0.00037291,120]
[426573168,1782612159000,4120.896638,0.00037291,120]
[426573167,1782612159000,564.394195,0.00037291,120]
[426573165,1782612159000,4120.896638,0.00037291,120]
[426573170,1782612160000,564.394195,0.00037291,120]
[426573171,1782612160000,4120.896638,0.00037291,120]
[426573172,1782612160000,151.0,0.00037291,120]
[426573169,1782612160000,151.0,0.00037291,120]
[426573174,1782612160000,4120.896638,0.00037291,120]
[426573176,1782612160000,564.394195,0.00037291,120]
[426573175,1782612160000,151.0,0.00037291,120]
[426573173,1782612160000,564.394195,0.00037291,120]
[426573181,1782612161000,151.0,0.00037291,120]
[426573182,1782612161000,564.394195,0.00037291,120]
[426573180,1782612161000,4120.896638,0.00037291,120]
[426573179,1782612161000,564.394195,0.00037291,120]
[426573178,1782612161000,151.0,0.00037291,120]
[426573177,1782612161000,4120.896638,0.00037291,120]
[426573183,1782612161000,4120.896638,0.00037291,120]
[426573184,1782612162000,151.0,0.00037291,120]
[426573185,1782612162000,564.394196,0.00037291,120]
[426573187,1782612162000,151.0,0.00037291,120]
[426573188,1782612162000,209.634304,0.00037291,120]
[426573189,1782612162000,151.0,0.00037291,120]
[426573186,1782612162000,4120.896638,0.00037291,120]
[426573192,1782612163000,176.189185,0.00037291,120]
[426573191,1782612163000,4120.896638,0.00037291,120]
[426573190,1782612163000,151.0,0.00037291,120]
[426573194,1782612164000,4120.896638,0.00037291,120]
[426573193,1782612164000,4120.896638,0.00037291,120]
[426573197,1782612165000,4120.896638,0.00037291,120]
[426573196,1782612165000,4120.896638,0.00037291,120]
[426573195,1782612165000,4120.896638,0.00037291,120]
[426573198,1782612166000,4120.896638,0.00037291,120]
[426573201,1782612166000,151.0,0.00037291,120]
[426573200,1782612166000,4120.896638,0.00037291,120]
[426573199,1782612166000,151.0,0.00037291,120]
[426573207,1782612167000,151.0,0.00037291,120]
[426573206,1782612167000,4120.896638,0.00037291,120]
[426573205,1782612167000,151.0,0.00037291,120]
[426573204,1782612167000,4120.896638,0.00037291,120]
[426573203,1782612167000,151.0,0.00037291,120]
[426573202,1782612167000,4120.896638,0.00037291,120]
[426573208,1782612168000,4120.896636,0.00037291,120]
[426573210,1782612168000,151.0,0.00037291,120]
[426573209,1782612168000,151.0,0.00037291,120]
[426573211,1782612169000,151.0,0.00037291,120]
[426573213,1782612169000,151.0,0.00037291,120]
[426573212,1782612169000,151.0,0.00037291,120]
[426573214,1782612170000,289.928301,0.00037291,120]
[426573216,1782612204000,211.796836,0.00037291,120]
[426573215,1782612204000,-578.04866166,0.000149,2]
[426573217,1782612211000,338.876052,0.00037291,120]
[426573219,1782612212000,338.876052,0.00037291,120]
[426573218,1782612212000,338.876052,0.00037291,120]
[426573220,1782612213000,338.876052,0.00037291,120]
[426573222,1782612213000,338.876052,0.00037291,120]
[426573221,1782612213000,338.876052,0.00037291,120]
[426573224,1782612214000,338.876052,0.00037291,120]
[426573223,1782612214000,338.876052,0.00037291,120]
[426573227,1782612215000,338.876052,0.00037291,120]
[426573226,1782612215000,338.876052,0.00037291,120]
[426573225,1782612215000,338.876052,0.00037291,120]
[426573230,1782612216000,338.876052,0.00037291,120]
[426573229,1782612216000,338.876052,0.00037291,120]
[426573228,1782612216000,338.876052,0.00037291,120]
[426573232,1782612217000,338.876052,0.00037291,120]
[426573231,1782612217000,338.876052,0.00037291,120]
[426573235,1782612218000,338.876052,0.00037291,120]
[426573234,1782612218000,338.876052,0.00037291,120]
[426573233,1782612218000,338.876052,0.00037291,120]
[426573236,1782612219000,338.876056,0.00037291,120]
[426573237,1782612220000,151.0,0.00037291,120]
[426573238,1782612221000,208.542054,0.00037291,120]
[426573239,1782612257000,-208.6184678,0.00014999,2]
[426573240,1782612262000,296.684689,0.00037291,120]
[426573241,1782612263000,154.792281,0.00037291,120]
[426573242,1782612263000,296.684689,0.00037291,120]
[426573243,1782612263000,296.684689,0.00037291,120]
[426573246,1782612264000,296.684689,0.00037291,120]
[426573245,1782612264000,296.684689,0.00037291,120]
[426573244,1782612264000,296.684689,0.00037291,120]
[426573248,1782612265000,296.684689,0.00037291,120]
[426573247,1782612265000,296.684689,0.00037291,120]
[426573250,1782612266000,296.684689,0.00037291,120]
[426573249,1782612266000,296.684689,0.00037291,120]
[426573251,1782612267000,151.0,0.00037291,120]
[426573252,1782612267000,296.684689,0.00037291,120]
[426573253,1782612267000,151.0,0.00037291,120]
[426573254,1782612267000,296.684689,0.00037291,120]
[426573255,1782612267000,151.0,0.00037291,120]
[426573259,1782612268000,151.0,0.00037291,120]
[426573258,1782612268000,296.684689,0.00037291,120]
[426573257,1782612268000,151.0,0.00037291,120]
[426573256,1782612268000,296.684689,0.00037291,120]
[426573260,1782612269000,296.684689,0.00037291,120]
[426573262,1782612269000,296.684689,0.00037291,120]
[426573263,1782612269000,265.949233,0.00037291,120]
[426573261,1782612269000,151.0,0.00037291,120]
[426573264,1782612270000,296.684689,0.00037291,120]
[426573265,1782612270000,296.684689,0.00037291,120]
[426573267,1782612271000,296.684688,0.00037291,120]
[426573266,1782612271000,296.684689,0.00037291,120]
[426573268,1782612273000,185.645386,0.00037291,120]
[426573269,1782612274000,166.404112,0.00037291,120]
[426573270,1782612275000,151.0,0.00037291,120]
[426573273,1782612275000,166.404112,0.00037291,120]
[426573272,1782612275000,151.0,0.00037291,120]
[426573271,1782612275000,166.404112,0.00037291,120]
[426573278,1782612276000,151.0,0.00037291,120]
[426573277,1782612276000,166.404112,0.00037291,120]
[426573276,1782612276000,151.0,0.00037291,120]
[426573275,1782612276000,166.404112,0.00037291,120]
[426573274,1782612276000,151.0,0.00037291,120]
[426573281,1782612277000,151.0,0.00037291,120]
[426573279,1782612277000,166.404112,0.00037291,120]
[426573280,1782612277000,151.0,0.00037291,120]
[426573282,1782612277000,166.404112,0.00037291,120]
[426573284,1782612277000,151.0,0.00037291,120]
[426573283,1782612277000,151.0,0.00037291,120]
[426573286,1782612277000,151.0,0.00037291,120]
[426573285,1782612277000,166.404112,0.00037291,120]
[426573293,1782612278000,151.0,0.00037291,120]
[426573292,1782612278000,160.258134,0.00037291,120]
[426573291,1782612278000,166.404112,0.00037291,120]
[426573290,1782612278000,151.0,0.00037291,120]
[426573289,1782612278000,151.0,0.00037291,120]
[426573288,1782612278000,166.404112,0.00037291,120]
[426573287,1782612278000,151.0,0.00037291,120]
[426573294,1782612279000,166.404112,0.00037291,120]
[426573295,1782612279000,151.0,0.00037291,120]
[426573297,1782612279000,232.572591,0.00037291,120]
[426573296,1782612279000,166.404112,0.00037291,120]
[426573298,1782612279000,166.404112,0.00037291,120]
[426573300,1782612280000,166.404112,0.00037291,120]
[426573299,1782612280000,166.404112,0.00037291,120]
[426573301,1782612281000,166.404112,0.00037291,120]
[426573303,1782612281000,166.404112,0.00037291,120]
[426573302,1782612281000,166.404112,0.00037291,120]
[426573305,1782612282000,166.404116,0.00037291,120]
[426573304,1782612282000,166.404112,0.00037291,120]
[426573306,1782612288000,1000.0,0.00025169,120]
[426573308,1782612296000,151.0,0.00037291,120]
[426573309,1782612296000,151.0,0.00037291,120]
[426573310,1782612297000,259.187533,0.00037291,120]
[426573314,1782612311000,227.8673612,0.000142,2]
[426573313,1782612311000,311.46845188,0.000142,2]
[426573312,1782612311000,-150.0,0.00014999,2]
[426573317,1782612322000,178.366787,0.00037291,120]
[426573316,1782612322000,151.0,0.00037291,120]
[426573315,1782612322000,151.0,0.00037291,120]
[426573318,1782612323000,151.0,0.00037291,120]
[426573319,1782612323000,151.0,0.00037291,120]
[426573321,1782612324000,151.0,0.00037291,120]
[426573320,1782612324000,151.0,0.00037291,120]
[426573322,1782612324000,151.0,0.00037291,120]
[426573323,1782612325000,151.0,0.00037291,120]
[426573325,1782612326000,151.0,0.00037291,120]
[426573324,1782612326000,151.0,0.00037291,120]
[426573328,1782612327000,151.0,0.00037291,120]
[426573327,1782612327000,151.0,0.00037291,120]
[426573326,1782612327000,151.0,0.00037291,120]
[426573330,1782612328000,151.0,0.00037291,120]
[426573329,1782612328000,151.0,0.00037291,120]
[426573331,1782612329000,151.0,0.00037291,120]
[426573332,1782612329000,151.0,0.00037291,120]
[426573335,1782612330000,151.0,0.00037291,120]
[426573333,1782612330000,268.656844,0.00037291,120]
[426573334,1782612330000,151.0,0.00037291,120]
[426573337,1782612331000,151.0,0.00037291,120]
[426573336,1782612331000,151.0,0.00037291,120]
[426573339,1782612332000,151.0,0.00037291,120]
[426573338,1782612332000,151.0,0.00037291,120]
[426573340,1782612333000,230.550448,0.00037291,120]
[426573342,1782612338000,-250.0,0.000146,2]
[426573341,1782612338000,-225.6728305,0.000146,2]
[426573343,1782612338000,-150.0,0.00014727,2]
[426573344,1782612338000,-163.0081845,0.00014854,2]
[426573347,1782612338000,151.0,0.00037291,120]
[426573345,1782612338000,-884.1833268,0.00014999,2]
[426573348,1782612338000,151.0,0.00037291,120]
[426573349,1782612338000,1060.860545,0.00037291,120]
[426573350,1782612338000,151.0,0.00037291,120]
[426573346,1782612338000,-4578.97516222,0.00015,2]
[426573354,1782612339000,151.0,0.00037291,120]
[426573353,1782612339000,1060.860545,0.00037291,120]
[426573352,1782612339000,151.0,0.00037291,120]
[426573351,1782612339000,1060.860545,0.00037291,120]
[426573355,1782612340000,1060.860545,0.00037291,120]
[426573356,1782612340000,151.0,0.00037291,120]
[426573359,1782612340000,1060.860545,0.00037291,120]
[426573358,1782612340000,182.037255,0.00037291,120]
[426573357,1782612340000,1060.860545,0.00037291,120]
[426573362,1782612341000,1060.860545,0.00037291,120]
[426573360,1782612341000,151.0,0.00037291,120]
[426573363,1782612341000,151.0,0.00037291,120]
[426573361,1782612341000,1060.860545,0.00037291,120]
[426573367,1782612342000,151.0,0.00037291,120]
[426573366,1782612342000,1060.860545,0.00037291,120]
[426573365,1782612342000,151.0,0.00037291,120]
[426573364,1782612342000,1060.860545,0.00037291,120]
[426573369,1782612343000,151.0,0.00037291,120]
[426573368,1782612343000,1060.860545,0.00037291,120]
[426573372,1782612343000,1060.860545,0.00037291,120]
[426573373,1782612343000,151.0,0.00037291,120]
[426573371,1782612343000,151.0,0.00037291,120]
[426573370,1782612343000,1060.860545,0.00037291,120]
[426573377,1782612344000,1060.860545,0.00037291,120]
[426573376,1782612344000,204.713903,0.00037291,120]
[426573375,1782612344000,1060.860545,0.00037291,120]
[426573374,1782612344000,151.0,0.00037291,120]
[426573378,1782612345000,-176.91044739,0.00015,2]
[426573381,1782612345000,1060.860545,0.00037291,120]
[426573380,1782612345000,1060.860545,0.00037291,120]
[426573379,1782612345000,1060.860545,0.00037291,120]
[426573382,1782612346000,1060.860545,0.00037291,120]
[426573383,1782612346000,1060.860554,0.00037291,120]
[426573385,1782612347000,151.0,0.00037291,120]
[426573384,1782612347000,151.0,0.00037291,120]
[426573386,1782612348000,151.0,0.00037291,120]
[426573387,1782612349000,229.69444842,0.000142,2]
[426573388,1782612350000,168.04227693,0.000142,2]
[426573389,1782612364000,-1817.0,0.00015,2]
[426573392,1782612376000,156.01,0.00025379,120]
[426573391,1782612376000,-1801.0,0.00015,2]
[426573393,1782612389000,-1801.0,0.00015,2]
[426573396,1782612401000,-1820.0,0.00015,2]
[426573398,1782612413000,-1820.0,0.00015,2]
[426573399,1782612425000,-1832.0,0.00015,2]
[426573401,1782612437000,-1832.0,0.00015,2]
[426573402,1782612438000,-442.35551785,0.00015,2]
[426573403,1782612446000,-2087.62903586,0.00015,2]
[426573404,1782612448000,-522.72058409,0.00015,2]
[426573406,1782612505000,151.0,0.00037291,120]
[426573405,1782612505000,151.0,0.00037291,120]
[426573407,1782612506000,151.0,0.00037291,120]
[426573410,1782612507000,151.0,0.00037291,120]
[426573409,1782612507000,151.0,0.00037291,120]
[426573408,1782612507000,151.0,0.00037291,120]
[426573411,1782612508000,151.0,0.00037291,120]
[426573412,1782612509000,151.0,0.00037291,120]
[426573414,1782612510000,151.0,0.00037291,120]
[426573413,1782612510000,151.0,0.00037291,120]
[426573417,1782612511000,151.0,0.00037291,120]
[426573416,1782612511000,151.0,0.00037291,120]
[426573415,1782612511000,151.0,0.00037291,120]
[426573418,1782612512000,-3521.17644397,0.00015,2]
[426573419,1782612512000,-3521.17644397,0.00015,2]
[426573420,1782612512000,-3521.17644397,0.00015,2]
[426573421,1782612512000,-3521.17644397,0.00015,2]
[426573424,1782612512000,-3521.17644397,0.00015,2]
[426573423,1782612512000,-2286.87522111,0.00015,2]
[426573425,1782612512000,299.350414,0.00037291,120]
[426573426,1782612512000,-3521.17644397,0.00015,2]
[426573427,1782612512000,-3521.17644397,0.00015,2]
[426573422,1782612512000,-1234.30122286,0.00015,2]
[426573428,1782612557000,-7183.4963778,0.00015,2]
[426573432,1782612558000,-285.05513885,0.00015,2]
[426573430,1782612558000,-208.6184678,0.00015,2]
[426573431,1782612558000,-208.6184678,0.00015,2]
[426573429,1782612558000,-1638.37546685,0.00015,2]
[426573434,1782612558000,-300.0,0.0001562,2]
[426573435,1782612558000,-250.0,0.0001562,2]
[426573436,1782612558000,-200.0,0.0001655,2]
[426573437,1782612558000,-13445.07446947,0.00018531,2]
[426573433,1782612558000,-160.0,0.00015112,2]
[426573440,1782612562000,2263.673578,0.00037291,120]
[426573439,1782612562000,151.0,0.00037291,120]
[426573438,1782612562000,151.0,0.00037291,120]
[426573444,1782612563000,2263.673578,0.00037291,120]
[426573443,1782612563000,151.0,0.00037291,120]
[426573442,1782612563000,2263.673578,0.00037291,120]
[426573441,1782612563000,151.0,0.00037291,120]
[426573445,1782612564000,279.112002,0.00037291,120]
[426573446,1782612564000,2263.673578,0.00037291,120]
[426573447,1782612564000,2263.673578,0.00037291,120]
[426573449,1782612565000,2263.673578,0.00037291,120]
[426573448,1782612565000,2263.673578,0.00037291,120]
[426573452,1782612566000,2263.673578,0.00037291,120]
[426573451,1782612566000,2263.673578,0.00037291,120]
[426573450,1782612566000,2263.673578,0.00037291,120]
[426573453,1782612567000,2263.673578,0.00037291,120]
[426573456,1782612568000,2263.673578,0.00037291,120]
[426573455,1782612568000,2263.673578,0.00037291,120]
[426573454,1782612568000,2263.673578,0.00037291,120]
[426573458,1782612569000,2263.673578,0.00037291,120]
[426573457,1782612569000,2263.673578,0.00037291,120]
[426573460,1782612570000,2263.673578,0.00037291,120]
[426573459,1782612570000,2263.673578,0.00037291,120]
[426573462,1782612571000,2263.673585,0.00037291,120]
[426573461,1782612571000,2263.673578,0.00037291,120]
[426573467,1782612572000,-47.73419695,0.0002,2]
[426573466,1782612572000,-199.5,0.00019727,2]
[426573464,1782612572000,-8737.87647352,0.00016169,2]
[426573465,1782612572000,-84.46994753,0.00018531,2]
[426573463,1782612572000,-2570.37982178,0.00016169,2]
[426573479,1782612632000,-900.30902989,0.00021272,2]
[426573480,1782612632000,-199.69097011,0.00021272,2]
[426573478,1782612632000,-153.0,0.00021,2]
[426573477,1782612632000,-151.0,0.00021,2]
[426573472,1782612632000,-117.41630919,0.0002,2]
[426573471,1782612632000,-69.96223364,0.00018,2]
[426573475,1782612632000,-153.0,0.0002,2]
[426573474,1782612632000,-151.0,0.0002,2]
[426573473,1782612632000,-155.0,0.0002,2]
[426573483,1782612632000,-153.0,0.00022,2]
[426573470,1782612632000,-178.76776636,0.00018,2]
[426573469,1782612632000,-250.0,0.00014,2]
[426573476,1782612632000,-158.31193028,0.00021,2]
[426573481,1782612632000,-3140.28,0.00021273,2]
[426573495,1782612632000,-7853.60378648,0.00023367,2]
[426573485,1782612632000,-11793.20071179,0.00022801,2]
[426573498,1782612632000,-165.28769341,0.00023368,2]
[426573496,1782612632000,-1211.50634483,0.00023367,2]
[426573494,1782612632000,-9999.99,0.00023367,2]
[426573493,1782612632000,-299.99,0.00023367,7]
[426573490,1782612632000,-9999.99,0.00023367,2]
[426573484,1782612632000,-150.0,0.00022208,2]
[426573497,1782612632000,-243.93986869,0.00023367,2]
[426573488,1782612632000,-169.24600172,0.00023174,2]
[426573482,1782612632000,-151.0,0.00022,2]
[426573487,1782612632000,-153.0,0.00023,2]
[426573492,1782612632000,-9999.99,0.00023367,2]
[426573489,1782612632000,-169.24600172,0.00023174,2]
[426573486,1782612632000,-151.0,0.00023,2]
[426573491,1782612632000,-3054.71,0.00023367,2]
[426573521,1782612638000,-58.07955016,0.00023368,2]
[426573519,1782612638000,-2470.77577947,0.00023368,2]
[426573518,1782612638000,-150.99,0.00023368,2]
[426573517,1782612638000,-834.70230659,0.00023368,2]
[426573536,1782612643000,-694.64946702,0.00023368,2]
[426573537,1782612644000,-328.75867535,0.00023368,2]
[426573538,1782612644000,-1722.75152567,0.00023368,2]
[426573555,1782612646000,-418.14182743,0.00023368,2]
[426573557,1782612647000,-150.0,0.00023684,2]
[426573556,1782612647000,-4306.8331749,0.00023368,2]
[426573558,1782612647000,-237.09357206,0.00024,2]
[426573559,1782612647000,-162.78522972,0.00024,2]
[426573561,1782612647000,-1649.22063691,0.00024,2]
[426573564,1782612647000,-198.60447268,0.00024174,2]
[426573563,1782612647000,-1874.21861457,0.00024074,2]
[426573560,1782612647000,-161.55488836,0.00024,2]
[426573569,1782612647000,-1000.0,0.00024174,2]
[426573565,1782612647000,-1000.0,0.00024174,2]
[426573573,1782612647000,-763.17892557,0.00024174,2]
[426573571,1782612647000,-634.92734986,0.00024174,2]
[426573572,1782612647000,-1000.0,0.00024174,2]
[426573562,1782612647000,-2555.8007768,0.00024045,2]
[426573570,1782612647000,-365.07265014,0.00024174,2]
[426573566,1782612647000,-1000.0,0.00024174,2]
[426573567,1782612647000,-1000.0,0.00024174,2]
[426573568,1782612647000,-1000.0,0.00024174,2]
[426573574,1782612668000,151.0,0.00037291,120]
[426573575,1782612669000,151.0,0.00037291,120]
[426573576,1782612669000,151.0,0.00037291,120]
[426573577,1782612670000,156.095419,0.00037291,120]
[426573578,1782612674000,151.0,0.00037291,120]
[426573579,1782612675000,151.0,0.00037291,120]
[426573580,1782612675000,151.0,0.00037291,120]
[426573582,1782612676000,205.658929,0.00037291,120]
[426573581,1782612676000,151.0,0.00037291,120]
[426573583,1782612693000,153.035749,0.00037291,120]
[426573585,1782612807000,151.10914473,0.00029509,120]
[426573586,1782612836000,-154.0,0.0002,2]
[426573587,1782612890000,-154.0,0.00021,2]
[426573588,1782612900000,603.5300247,0.00028999,120]
[426573589,1782612932000,500.0,0.00028539,120]
[426573590,1782612943000,-250.0,0.000215,2]
[426573592,1782612943000,524.57474645,0.00029699,120]
[426573591,1782612943000,500.0,0.00028999,120]
[426573593,1782612996000,-291.75640174,0.00021968,2]
[426573596,1782613029000,5179.58,0.00037291,120]
[426573597,1782613050000,-150.0,0.00021984,2]
[426573598,1782613061000,374.369282,0.00028999,120]
[426573599,1782613083000,243.5886549,0.00037291,120]
[426573600,1782613103000,-168.727747,0.00022,2]
[426573601,1782613156000,-151.21958932,0.00022,2]
[426573602,1782613158000,776.94,0.00037298,120]
[426573603,1782613174000,1127.44859561,0.00037298,120]
[426573604,1782613194000,1626.61923277,0.00037298,120]
[426573606,1782613209000,-258.17,0.0002194,2]
[426573608,1782613210000,500.0,0.00028999,120]
[426573607,1782613210000,500.0,0.00028539,120]
[426573609,1782613211000,507.39044454,0.00029699,120]
[426573610,1782613263000,-402.0,0.00021049,2]
[426573612,1782613275000,579.83,0.00029868,120]
[426573611,1782613275000,-221.12272059,0.00021049,2]
[426573613,1782613332000,169.68,0.00025274,120]
[426573614,1782613333000,169.68,0.00028884,120]
[426573615,1782613339000,500.0,0.00028539,120]
[426573616,1782613339000,509.09693478,0.00028999,120]
[426573617,1782613412000,20128.0,0.00037298,120]
[426573618,1782613449000,512.07334643,0.00028539,120]
[426573621,1782613483000,166.66,0.00022524,30]
[426573620,1782613483000,166.66,0.00022095,30]
[426573622,1782613540000,499006.396096,0.00037299,120]
[426573624,1782613576000,500.0,0.00028999,120]
[426573623,1782613576000,500.0,0.00028539,120]